fUSD/lending_fUSD_20260106
["ID","MTS","AMOUNT","RATE_DAILY","PERIOD"]
[400574767,1767729053887,-168.0,0.00043151,90]
[400574769,1767729053896,-2500.0,0.00043157,120]
[400574771,1767729053906,-2500.0,0.00043157,120]
[400574772,1767729053916,-2500.0,0.00043157,120]
[400574774,1767729053925,-2500.0,0.00043157,120]
[400574776,1767729053935,-2500.0,0.00043157,120]
[400574778,1767729053944,-2562.08208434,0.00043157,120]
[400574780,1767729053954,-151.0,0.00043157,120]
[400574782,1767729053964,-151.0,0.00043157,120]
[400574784,1767729053973,-158.565545,0.00043157,120]
[400574786,1767729053983,-158.565545,0.00043157,120]
[400574788,1767729053993,-158.565545,0.00043157,120]
[400574790,1767729054003,-158.565545,0.00043157,120]
[400574792,1767729054013,-150.80527013,0.0004318,120]
[400574794,1767729054023,-770.85977617,0.000432,120]
[400574796,1767729054032,-203.37937596,0.000432,120]
[400574798,1767729054042,-152.0,0.000432,120]
[400574800,1767729054051,-2220.4,0.000432,60]
[400574802,1767729054061,-152.31,0.00043216,120]
[400574804,1767729054071,-165.71408053,0.0004327,120]
[400574806,1767729054080,-999.0,0.00043287,120]
[400574808,1767729054090,-251.87316765,0.00043298,120]
[400574810,1767729054100,-213.10198803,0.00043298,120]
[400574811,1767729054110,-150.41,0.000433,30]
[400574813,1767729054119,-150.44,0.000433,30]
[400574815,1767729054130,-152.31,0.00043316,120]
[400574817,1767729054140,-151.0,0.00043318,120]
[400574819,1767729054151,-167.193054,0.00043318,120]
[400574821,1767729054162,-188.179526,0.00043318,120]
[400574823,1767729054172,-151.0,0.00043318,60]
[400574825,1767729054181,-151.0,0.00043318,60]
[400574827,1767729054191,-731.57575,0.00043318,120]
[400574829,1767729054200,-731.57575,0.00043318,120]
[400574831,1767729054210,-151.0,0.00043318,120]
[400574833,1767729054219,-731.57575,0.00043318,120]
[400574835,1767729054228,-151.0,0.00043318,120]
[400574837,1767729054238,-731.57575,0.00043318,120]
[400574839,1767729054247,-151.0,0.00043318,120]
[400574840,1767729054257,-151.0,0.00043318,120]
[400574842,1767729054266,-151.0,0.00043318,120]
[400574844,1767729054275,-227.7122,0.00043318,120]
[400574846,1767729054285,-227.7122,0.00043318,120]
[400574848,1767729054294,-151.0,0.00043318,120]
[400574850,1767729054304,-227.7122,0.00043318,120]
[400574852,1767729054314,-151.0,0.00043318,120]
[400574854,1767729054323,-227.7122,0.00043318,120]
[400574856,1767729054332,-1447.589795,0.00043318,120]
[400574858,1767729054342,-1447.589795,0.00043318,120]
[400574860,1767729054351,-1447.589795,0.00043318,120]
[400574862,1767729054360,-1447.589795,0.00043318,120]
[400574864,1767729054369,-151.0,0.00043318,120]
[400574866,1767729054378,-151.0,0.00043318,120]
[400574868,1767729054387,-151.0,0.00043318,120]
[400574870,1767729054397,-171.417226,0.00043318,120]
[400574871,1767729054408,-179.509805,0.00043318,120]
[400574872,1767729054418,-559.743318,0.00043318,2]
[400574873,1767729054427,-179.509805,0.00043318,120]
[400574874,1767729054436,-559.743318,0.00043318,2]
[400574875,1767729054446,-694.414465,0.00043318,120]
[400574876,1767729054455,-179.509805,0.00043318,120]
[400574877,1767729054464,-559.743318,0.00043318,2]
[400574878,1767729054473,-694.414465,0.00043318,120]
[400574879,1767729054482,-559.743318,0.00043318,2]
[400574880,1767729054491,-179.509805,0.00043318,120]
[400574881,1767729054500,-694.414465,0.00043318,120]
[400574887,1767729054637,-694.414465,0.00043318,120]
[400574890,1767729054647,-151.0,0.00043318,120]
[400574891,1767729054656,-151.0,0.00043318,120]
[400574893,1767729054665,-151.0,0.00043318,120]
[400574894,1767729054674,-151.0,0.00043318,120]
[400574895,1767729054683,-151.0,0.00043318,120]
[400574896,1767729054692,-151.0,0.00043318,120]
[400574897,1767729054701,-224.27226,0.00043318,120]
[400574898,1767729054711,-166.649851,0.00043318,120]
[400574899,1767729054721,-166.649851,0.00043318,120]
[400574900,1767729054730,-166.649851,0.00043318,120]
[400574901,1767729054739,-166.649851,0.00043318,120]
[400574902,1767729054749,-283.46,0.00043319,120]
[400574903,1767729054758,-269.47,0.00043319,120]
[400574904,1767729054767,-2053.97,0.00043335,120]
[400574905,1767729054779,-1233.595775,0.00043335,15]
[400574906,1767729054788,-202.07318799,0.00043335,11]
[400574907,1767729054797,-151.0,0.00043335,120]
[400574909,1767729054806,-151.0,0.00043335,120]
[400574911,1767729054817,-300.0,0.00043341,30]
[400574913,1767729054833,-300.0,0.00043341,30]
[400574915,1767729054841,-666.0,0.00043341,30]
[400574917,1767729054850,-4074.24337259,0.00043342,2]
[400574919,1767729054860,-261.22863142,0.00043342,2]
[400574921,1767729054869,-300.0,0.00043349,30]
[400574922,1767729054878,-300.0,0.00043349,30]
[400574923,1767729054888,-666.0,0.00043349,30]
[400574925,1767729054899,-151.0,0.0004335,120]
[400574926,1767729054908,-151.0,0.0004335,120]
[400574928,1767729054917,-178.435728,0.0004335,120]
[400574930,1767729054926,-151.0,0.0004335,120]
[400574931,1767729054936,-151.0,0.0004335,120]
[400574932,1767729054945,-151.0,0.0004335,120]
[400574933,1767729054955,-257.086558,0.0004335,120]
[400574934,1767729054964,-151.0,0.0004335,120]
[400574936,1767729054974,-151.0,0.0004335,120]
[400574938,1767729054983,-1242.644525,0.0004335,120]
[400574940,1767729054993,-1242.644525,0.0004335,120]
[400574942,1767729055002,-1242.644525,0.0004335,120]
[400574944,1767729055011,-1242.644525,0.0004335,120]
[400574946,1767729055022,-175.863763,0.0004335,120]
[400574947,1767729055032,-175.863763,0.0004335,120]
[400574948,1767729055041,-175.863763,0.0004335,120]
[400574949,1767729055051,-175.863763,0.0004335,120]
[400574950,1767729055061,-300.0,0.00043352,30]
[400574951,1767729055070,-300.0,0.00043352,30]
[400574952,1767729055079,-4074.24337259,0.00043353,2]
[400574953,1767729055089,-261.22863142,0.00043353,2]
[400574954,1767729055099,-300.0,0.00043356,30]
[400574955,1767729055109,-300.0,0.00043356,30]
[400574956,1767729055118,-334.29786662,0.00043357,15]
[400574957,1767729055127,-465.27484984,0.00043357,120]
[400574959,1767729055136,-300.0,0.00043363,30]
[400574961,1767729055146,-300.0,0.00043363,30]
[400574963,1767729055156,-300.0,0.00043363,30]
[400574965,1767729055166,-188.35701994,0.00043364,2]
[400574967,1767729055176,-554.99822977,0.00043364,2]
[400574969,1767729055185,-4074.24337259,0.00043364,2]
[400574971,1767729055194,-261.22863142,0.00043364,2]
[400574973,1767729055204,-503.63126331,0.00043364,28]
[400574975,1767729055217,-863.87770283,0.00043364,120]
[400574977,1767729055228,-863.87770283,0.00043364,120]
[400574979,1767729055239,-863.87770283,0.00043364,120]
[400574981,1767729055248,-863.87770283,0.00043364,120]
[400574983,1767729055257,-863.87770283,0.00043364,120]
[400574985,1767729055267,-863.87770283,0.00043364,120]
[400574986,1767729055278,-863.87770283,0.00043364,120]
[400574988,1767729055287,-863.87770283,0.00043364,120]
[400574989,1767729055296,-863.87770283,0.00043364,120]
[400574990,1767729055306,-863.87770283,0.00043364,120]
[400574991,1767729055315,-863.87770283,0.00043364,120]
[400574992,1767729055325,-863.87770283,0.00043364,120]
[400574993,1767729055334,-863.87770283,0.00043364,120]
[400574994,1767729055344,-863.87770283,0.00043364,120]
[400574995,1767729055354,-863.87770283,0.00043364,120]
[400574996,1767729055364,-863.87770283,0.00043364,120]
[400574997,1767729055373,-863.87770283,0.00043364,120]
[400574998,1767729055383,-863.87770283,0.00043364,120]
[400574999,1767729055392,-863.87770283,0.00043364,120]
[400575000,1767729055402,-863.87,0.00043364,120]
[400575001,1767729055411,-2015.71463993,0.00043364,120]
[400575002,1767729055422,-2015.71463993,0.00043364,120]
[400575003,1767729055432,-2015.71463993,0.00043364,120]
[400575004,1767729055441,-2015.71463993,0.00043364,120]
[400575005,1767729055451,-2015.71463993,0.00043364,120]
[400575006,1767729055461,-2015.71463993,0.00043364,120]
[400575007,1767729055471,-2015.71463993,0.00043364,120]
[400575008,1767729055481,-2015.71463993,0.00043364,120]
[400575009,1767729055492,-2015.71463993,0.00043364,120]
[400575010,1767729055501,-2015.71463993,0.00043364,120]
[400575011,1767729055511,-2015.71463993,0.00043364,120]
[400575012,1767729055523,-2015.71463993,0.00043364,120]
[400575013,1767729055532,-2015.71463993,0.00043364,120]
[400575014,1767729055542,-2015.71463993,0.00043364,120]
[400575015,1767729055551,-2015.71463993,0.00043364,120]
[400575016,1767729055561,-2015.71463993,0.00043364,120]
[400575017,1767729055570,-2015.71463993,0.00043364,120]
[400575018,1767729055580,-2015.71463993,0.00043364,120]
[400575019,1767729055590,-2015.71463993,0.00043364,120]
[400575020,1767729055599,-2015.71,0.00043364,120]
[400575021,1767729055609,-300.0,0.00043369,30]
[400575022,1767729055618,-400.0,0.0004337,3]
[400575023,1767729055628,-704.85854174,0.0004337,3]
[400575024,1767729055637,-300.0,0.00043382,30]
[400575025,1767729055647,-20504.0,0.00043383,30]
[400575026,1767729055656,-151.0,0.00043383,120]
[400575027,1767729055666,-206.523687,0.00043383,120]
[400575028,1767729055675,-191.195533,0.00043383,120]
[400575029,1767729055684,-191.195533,0.00043383,120]
[400575030,1767729055694,-576.132778,0.00043383,120]
[400575031,1767729055703,-191.195533,0.00043383,120]
[400575032,1767729055712,-576.132778,0.00043383,120]
[400575033,1767729055721,-191.195533,0.00043383,120]
[400575034,1767729055730,-576.132778,0.00043383,120]
[400575035,1767729055739,-576.132778,0.00043383,120]
[400575036,1767729055749,-151.0,0.00043383,120]
[400575037,1767729055758,-166.67898,0.00043383,120]
[400575038,1767729055767,-160.0,0.000434,47]
[400575039,1767729055776,-1378.77,0.000434,30]
[400575040,1767729055786,-68324.11,0.000434,2]
[400575041,1767729055795,-188.531788,0.000434,120]
[400575042,1767729055806,-151.0,0.000434,120]
[400575043,1767729055818,-151.0,0.000434,120]
[400575044,1767729055836,-151.0,0.000434,120]
[400575045,1767729055845,-151.0,0.000434,120]
[400575046,1767729055854,-151.0,0.000434,120]
[400575047,1767729055864,-151.0,0.000434,120]
[400575048,1767729055873,-151.0,0.000434,120]
[400575049,1767729055882,-509.609052,0.000434,120]
[400575050,1767729055891,-509.609052,0.000434,120]
[400575051,1767729055900,-509.609052,0.000434,120]
[400575052,1767729055910,-509.609052,0.000434,120]
[400575053,1767729055920,-151.0,0.000434,120]
[400575054,1767729055929,-151.0,0.000434,120]
[400575055,1767729055938,-151.0,0.000434,120]
[400575056,1767729055949,-413.415595,0.000434,120]
[400575057,1767729055958,-413.415595,0.000434,120]
[400575058,1767729055968,-413.415595,0.000434,120]
[400575059,1767729055977,-413.415595,0.000434,120]
[400575060,1767729055987,-151.0,0.000434,30]
[400575061,1767729055996,-151.0,0.000434,120]
[400575062,1767729056008,-220.541688,0.000434,28]
[400575063,1767729056018,-220.541688,0.000434,28]
[400575064,1767729056027,-220.541688,0.000434,28]
[400575065,1767729056037,-220.541688,0.000434,28]
[400575066,1767729056046,-195.893926,0.000434,120]
[400575067,1767729056056,-195.893926,0.000434,120]
[400575068,1767729056065,-195.893926,0.000434,120]
[400575069,1767729056075,-195.893926,0.000434,120]
[400575070,1767729056085,-151.0,0.000434,120]
[400575071,1767729056095,-151.0,0.000434,120]
[400575072,1767729056105,-1588.704264,0.000434,120]
[400575073,1767729056117,-1588.704264,0.000434,120]
[400575074,1767729056126,-153.330749,0.000434,120]
[400575075,1767729056136,-1588.704264,0.000434,120]
[400575076,1767729056145,-153.330749,0.000434,120]
[400575077,1767729056155,-1588.704264,0.000434,120]
[400575078,1767729056167,-153.330749,0.000434,120]
[400575079,1767729056176,-151.0,0.000434,120]
[400575080,1767729056187,-153.330749,0.000434,120]
[400575081,1767729056205,-211.338245,0.000434,120]
[400575082,1767729056214,-211.338245,0.000434,120]
[400575083,1767729056224,-211.338245,0.000434,120]
[400575084,1767729056233,-211.338245,0.000434,120]
[400575085,1767729056243,-156.17782,0.000434,120]
[400575086,1767729056253,-156.17782,0.000434,120]
[400575087,1767729056262,-156.17782,0.000434,120]
[400575088,1767729056271,-156.17782,0.000434,120]
[400575089,1767729056281,-151.0,0.000434,7]
[400575090,1767729056291,-151.0,0.000434,7]
[400575091,1767729056302,-151.0,0.000434,120]
[400575092,1767729056312,-259.85998,0.000434,120]
[400575093,1767729056329,-151.0,0.000434,120]
[400575094,1767729056349,-151.0,0.000434,120]
[400575095,1767729056369,-151.0,0.000434,120]
[400575096,1767729056382,-151.0,0.000434,120]
[400575097,1767729056393,-151.0,0.000434,120]
[400575098,1767729056403,-422.58879,0.000434,120]
[400575099,1767729056414,-422.58879,0.000434,120]
[400575100,1767729056423,-422.58879,0.000434,120]
[400575101,1767729056433,-422.58879,0.000434,120]
[400575102,1767729056442,-151.0,0.000434,120]
[400575103,1767729056452,-151.0,0.00043416,120]
[400575104,1767729056461,-151.0,0.00043416,120]
[400575105,1767729056470,-271.216334,0.00043416,120]
[400575106,1767729056480,-151.0,0.00043416,120]
[400575107,1767729056492,-198.724959,0.00043416,120]
[400575108,1767729056503,-2612.823486,0.00043416,120]
[400575109,1767729056512,-192.614882,0.00043416,120]
[400575110,1767729056521,-2612.823486,0.00043416,120]
[400575111,1767729056531,-2612.823486,0.00043416,120]
[400575112,1767729056541,-2612.823486,0.00043416,120]
[400575113,1767729056550,-800.0,0.00043416,16]
[400575114,1767729056559,-800.0,0.00043416,16]
[400575115,1767729056568,-800.0,0.00043416,16]
[400575116,1767729056577,-800.0,0.00043416,16]
[400575117,1767729056587,-800.0,0.00043416,16]
[400575118,1767729056596,-800.0,0.00043416,16]
[400575119,1767729056605,-800.0,0.00043416,16]
[400575120,1767729056614,-800.0,0.00043416,16]
[400575121,1767729056740,-152.31,0.00043416,120]
[400575122,1767729056760,-800.0,0.00043417,16]
[400575123,1767729056769,-800.0,0.00043417,16]
[400575124,1767729056779,-800.0,0.00043417,16]
[400575125,1767729056788,-800.0,0.00043417,16]
[400575126,1767729056798,-800.0,0.00043417,16]
[400575127,1767729056808,-800.0,0.00043417,16]
[400575128,1767729056818,-800.0,0.00043417,16]
[400575129,1767729056830,-800.0,0.00043417,16]
[400575130,1767729056840,-461.76650521,0.00043418,2]
[400575131,1767729056849,-151.0,0.00043418,120]
[400575132,1767729056858,-151.0,0.00043418,120]
[400575133,1767729056868,-224.716118,0.00043418,120]
[400575134,1767729056877,-212.313693,0.00043418,120]
[400575135,1767729056886,-224.716118,0.00043418,120]
[400575136,1767729056899,-224.716118,0.00043418,120]
[400575137,1767729056908,-224.716118,0.00043418,120]
[400575138,1767729056918,-151.0,0.00043418,120]
[400575139,1767729056927,-250.041837,0.00043418,60]
[400575140,1767729056937,-155.710092,0.00043418,120]
[400575141,1767729056947,-155.710092,0.00043418,120]
[400575142,1767729056956,-155.710092,0.00043418,120]
[400575143,1767729056965,-155.710092,0.00043418,120]
[400575144,1767729056975,-151.0,0.00043418,120]
[400575145,1767729056984,-151.0,0.00043418,120]
[400575146,1767729056994,-151.0,0.00043418,120]
[400575147,1767729057003,-151.0,0.00043418,120]
[400575148,1767729057012,-151.0,0.00043418,120]
[400575149,1767729057022,-158.930238,0.00043418,120]
[400575150,1767729057032,-151.0,0.00043418,120]
[400575151,1767729057041,-158.930238,0.00043418,120]
[400575152,1767729057051,-151.0,0.00043418,120]
[400575153,1767729057060,-212.200798,0.00043418,120]
[400575154,1767729057069,-158.930238,0.00043418,120]
[400575155,1767729057079,-158.930238,0.00043418,120]
[400575156,1767729057088,-212.200798,0.00043418,120]
[400575157,1767729057098,-212.200798,0.00043418,120]
[400575158,1767729057108,-212.200798,0.00043418,120]
[400575159,1767729057119,-151.0,0.00043418,120]
[400575160,1767729057128,-151.0,0.00043418,120]
[400575161,1767729057138,-151.0,0.00043418,120]
[400575162,1767729057147,-228.769404,0.00043418,7]
[400575163,1767729057157,-228.769404,0.00043418,7]
[400575164,1767729057169,-228.769404,0.00043418,7]
[400575165,1767729057178,-228.769404,0.00043418,7]
[400575166,1767729057187,-1000.0,0.0004342,120]
[400575167,1767729057197,-3542.03,0.00043422,120]
[400575168,1767729057207,-1000.0,0.00043424,120]
[400575169,1767729057217,-388.19264094,0.00043432,7]
[400575170,1767729057226,-188.88498862,0.00043435,30]
[400575171,1767729057235,-57903.21222431,0.00043441,30]
[400575172,1767729057244,-278.17483,0.00043441,120]
[400575173,1767729057254,-151.0,0.00043441,120]
[400575174,1767729057263,-2617.0,0.00043441,120]
[400575175,1767729057272,-474946.87576475,0.00043442,3]
[400575176,1767729057282,-254965.03673003,0.00043442,3]
[400575177,1767729057291,-151.0,0.00043442,120]
[400575178,1767729057302,-151.0,0.00043442,120]
[400575179,1767729057311,-224.716118,0.00043442,120]
[400575180,1767729057320,-224.716118,0.00043442,120]
[400575181,1767729057330,-224.716118,0.00043442,120]
[400575182,1767729057340,-224.716118,0.00043442,120]
[400575183,1767729057350,-151.0,0.00043442,120]
[400575184,1767729057359,-155.710092,0.00043442,120]
[400575185,1767729057368,-155.710092,0.00043442,120]
[400575186,1767729057377,-155.710092,0.00043442,120]
[400575187,1767729057388,-155.710092,0.00043442,120]
[400575188,1767729057397,-151.0,0.00043442,120]
[400575189,1767729057410,-151.0,0.00043442,120]
[400575190,1767729057420,-151.0,0.00043442,120]
[400575191,1767729057430,-151.0,0.00043442,120]
[400575192,1767729057439,-158.565545,0.00043442,120]
[400575193,1767729057450,-158.565545,0.00043442,120]
[400575194,1767729057459,-158.565545,0.00043442,120]
[400575195,1767729057468,-158.565545,0.00043442,120]
[400575196,1767729057477,-151.0,0.00043442,120]
[400575197,1767729057486,-188.531788,0.00043442,120]
[400575198,1767729057496,-151.0,0.00043442,120]
[400575199,1767729057505,-151.0,0.00043442,120]
[400575200,1767729057514,-158.541394,0.00043442,120]
[400575201,1767729057524,-151.0,0.00043442,120]
[400575202,1767729057533,-151.0,0.00043442,120]
[400575203,1767729057543,-151.0,0.00043442,120]
[400575204,1767729057552,-256.18893,0.00043442,120]
[400575205,1767729057561,-509.609052,0.00043442,120]
[400575206,1767729057571,-509.609052,0.00043442,120]
[400575207,1767729057580,-509.609052,0.00043442,120]
[400575208,1767729057591,-509.609052,0.00043442,120]
[400575209,1767729057601,-151.0,0.00043442,120]
[400575210,1767729057610,-151.0,0.00043442,120]
[400575211,1767729057619,-191.195533,0.00043442,120]
[400575212,1767729057628,-191.195533,0.00043442,120]
[400575213,1767729057638,-576.132778,0.00043442,120]
[400575214,1767729057647,-191.195533,0.00043442,120]
[400575215,1767729057657,-576.132778,0.00043442,120]
[400575216,1767729057667,-191.195533,0.00043442,120]
[400575217,1767729057676,-576.132778,0.00043442,120]
[400575218,1767729057685,-576.132778,0.00043442,120]
[400575219,1767729057695,-235.896825,0.00043442,120]
[400575220,1767729057704,-151.0,0.00043442,120]
[400575221,1767729057713,-151.0,0.00043442,120]
[400575222,1767729057722,-151.0,0.00043442,120]
[400575223,1767729057732,-151.0,0.00043442,120]
[400575224,1767729057742,-151.0,0.00043442,120]
[400575225,1767729057751,-1242.644525,0.00043442,120]
[400575226,1767729057760,-1242.644525,0.00043442,120]
[400575227,1767729057769,-1242.644525,0.00043442,120]
[400575228,1767729057779,-1242.644525,0.00043442,120]
[400575229,1767729057788,-151.0,0.00043442,120]
[400575230,1767729057797,-175.863763,0.00043442,120]
[400575231,1767729057806,-175.863763,0.00043442,120]
[400575232,1767729057817,-175.863763,0.00043442,120]
[400575233,1767729057827,-175.863763,0.00043442,120]
[400575234,1767729057838,-151.0,0.00043442,120]
[400575235,1767729057848,-151.0,0.00043442,60]
[400575236,1767729057858,-190.275926,0.00043442,60]
[400575237,1767729057867,-731.57575,0.00043442,120]
[400575238,1767729057877,-731.57575,0.00043442,120]
[400575239,1767729057887,-151.0,0.00043442,120]
[400575240,1767729057897,-731.57575,0.00043442,120]
[400575241,1767729057907,-151.0,0.00043442,120]
[400575242,1767729057916,-731.57575,0.00043442,120]
[400575243,1767729057925,-151.0,0.00043442,120]
[400575244,1767729057935,-151.0,0.00043442,120]
[400575245,1767729057944,-151.0,0.00043442,120]
[400575246,1767729057954,-227.7122,0.00043442,120]
[400575247,1767729057963,-227.7122,0.00043442,120]
[400575248,1767729057973,-151.0,0.00043442,120]
[400575249,1767729057982,-227.7122,0.00043442,120]
[400575250,1767729057992,-151.0,0.00043442,120]
[400575251,1767729058001,-227.7122,0.00043442,120]
[400575252,1767729058011,-1447.589795,0.00043442,120]
[400575253,1767729058020,-1447.589795,0.00043442,120]
[400575254,1767729058029,-1447.589795,0.00043442,120]
[400575255,1767729058038,-1447.589795,0.00043442,120]
[400575256,1767729058049,-151.0,0.00043442,120]
[400575257,1767729058058,-177.957707,0.00043442,120]
[400575258,1767729058067,-151.0,0.00043442,120]
[400575259,1767729058077,-179.509805,0.00043442,120]
[400575260,1767729058086,-559.743318,0.00043442,2]
[400575261,1767729058096,-179.509805,0.00043442,120]
[400575262,1767729058106,-559.743318,0.00043442,2]
[400575263,1767729058115,-694.414465,0.00043442,120]
[400575264,1767729058126,-179.509805,0.00043442,120]
[400575265,1767729058135,-559.743318,0.00043442,2]
[400575266,1767729058144,-694.414465,0.00043442,120]
[400575267,1767729058154,-559.743318,0.00043442,2]
[400575268,1767729058163,-179.509805,0.00043442,120]
[400575269,1767729058172,-694.414465,0.00043442,120]
[400575270,1767729058182,-694.414465,0.00043442,120]
[400575271,1767729058191,-151.0,0.00043442,120]
[400575272,1767729058200,-151.0,0.00043442,120]
[400575273,1767729058210,-151.0,0.00043442,120]
[400575274,1767729058219,-151.0,0.00043442,120]
[400575275,1767729058228,-151.0,0.00043442,120]
[400575276,1767729058237,-151.0,0.00043442,120]
[400575277,1767729058247,-151.0,0.00043442,120]
[400575278,1767729058255,-166.649851,0.00043442,120]
[400575279,1767729058265,-167.374059,0.00043442,120]
[400575280,1767729058274,-166.649851,0.00043442,120]
[400575281,1767729058283,-166.649851,0.00043442,120]
[400575282,1767729058292,-166.649851,0.00043442,120]
[400575283,1767729058302,-413.415595,0.00043442,120]
[400575284,1767729058312,-413.415595,0.00043442,120]
[400575285,1767729058322,-413.415595,0.00043442,120]
[400575286,1767729058331,-413.415595,0.00043442,120]
[400575287,1767729058341,-151.0,0.00043442,30]
[400575288,1767729058351,-220.541688,0.00043442,28]
[400575289,1767729058360,-220.541688,0.00043442,28]
[400575290,1767729058369,-220.541688,0.00043442,28]
[400575291,1767729058378,-220.541688,0.00043442,28]
[400575292,1767729058387,-195.893926,0.00043442,120]
[400575293,1767729058397,-195.893926,0.00043442,120]
[400575294,1767729058406,-195.893926,0.00043442,120]
[400575295,1767729058416,-195.893926,0.00043442,120]
[400575296,1767729058425,-151.0,0.00043442,120]
[400575297,1767729058435,-125.43055415,0.00043442,120]
[400575298,1767729059049,-151.0,0.000422,120]
[400575299,1767729059068,-25.56944585,0.00043442,120]
[400575300,1767729059084,-151.0,0.00043442,120]
[400575301,1767729059100,-151.0,0.00043442,120]
[400575302,1767729059115,-151.0,0.00043442,120]
[400575303,1767729059130,-158.930238,0.00043442,120]
[400575304,1767729059150,-151.0,0.00043442,120]
[400575305,1767729059166,-158.930238,0.00043442,120]
[400575306,1767729059180,-245.838148,0.00043442,120]
[400575307,1767729059196,-212.200798,0.00043442,120]
[400575308,1767729059210,-158.930238,0.00043442,120]
[400575309,1767729059226,-212.200798,0.00043442,120]
[400575310,1767729059241,-158.930238,0.00043442,120]
[400575311,1767729059255,-212.200798,0.00043442,120]
[400575312,1767729059270,-212.200798,0.00043442,120]
[400575313,1767729059286,-151.0,0.00043442,120]
[400575314,1767729059301,-151.0,0.00043442,120]
[400575315,1767729059316,-151.0,0.00043442,120]
[400575316,1767729059330,-235.221432,0.00043442,120]
[400575317,1767729059345,-151.0,0.00043442,120]
[400575318,1767729059361,-81.24510806,0.00043442,120]
[400575319,1767729060726,-151.0,0.00040482,120]
[400575320,1767729060738,-151.0,0.000407,120]
[400575321,1767729060747,-151.0,0.00042,120]
[400575322,1767729060757,-151.0,0.000422,120]
[400575323,1767729060767,-151.0,0.000434,120]
[400575324,1767729060776,-151.0,0.00043416,120]
[400575325,1767729060785,-151.0,0.00043416,120]
[400575326,1767729060795,-1507.45915594,0.00043442,120]
[400575327,1767729060807,-1588.704264,0.00043442,120]
[400575328,1767729060817,-153.330749,0.00043442,120]
[400575329,1767729060831,-1588.704264,0.00043442,120]
[400575330,1767729060841,-153.330749,0.00043442,120]
[400575331,1767729060851,-1588.704264,0.00043442,120]
[400575332,1767729060860,-153.330749,0.00043442,120]
[400575333,1767729060871,-151.0,0.00043442,120]
[400575334,1767729060880,-153.330749,0.00043442,120]
[400575335,1767729060890,-228.769404,0.00043442,7]
[400575336,1767729060902,-211.338245,0.00043442,120]
[400575337,1767729060911,-228.769404,0.00043442,7]
[400575338,1767729060920,-228.769404,0.00043442,7]
[400575339,1767729060929,-211.338245,0.00043442,120]
[400575340,1767729060940,-228.769404,0.00043442,7]
[400575341,1767729060949,-211.338245,0.00043442,120]
[400575342,1767729060959,-211.338245,0.00043442,120]
[400575343,1767729060968,-156.17782,0.00043442,120]
[400575344,1767729060977,-156.17782,0.00043442,120]
[400575345,1767729060986,-156.17782,0.00043442,120]
[400575346,1767729060996,-156.17782,0.00043442,120]
[400575347,1767729061006,-151.0,0.00043442,7]
[400575348,1767729061015,-151.0,0.00043442,7]
[400575349,1767729061025,-151.0,0.00043442,120]
[400575350,1767729061035,-151.0,0.00043442,120]
[400575351,1767729061044,-151.0,0.00043442,120]
[400575352,1767729061055,-151.0,0.00043442,120]
[400575353,1767729061064,-151.0,0.00043442,120]
[400575354,1767729061073,-151.0,0.00043442,120]
[400575355,1767729061082,-151.0,0.00043442,120]